Body Name,Service Code,Expenditure Category,Payment Date,Transaction Number,Supplier,Net Amount
Barrow Borough Council,Barrow Town Deal,Solicitors fees,10-Feb-2022,200054154,Brown Barron Solicitors,"1,441.50"
Barrow Borough Council,The Sound of Springsteen 14.02.22,Professional fees,24-Feb-2022,200054350,Barry Collings Entertainments,"2,636.35"
Barrow Borough Council,Emergency planning,Contain Outbreak Management Fund,24-Feb-2022,200054289,32West Ltd,"2,156.00"
Barrow Borough Council,Dock Museum HLF Phase 2,Professional fees,03-Feb-2022,200053953,Craig & Meyer Architects,"2,700.00"
Barrow Borough Council,Playground,Parks & Playgrounds Inspections & maintenance - contract,03-Feb-2022,200054010,Continental Landscapes Ltd,"15,919.21"
Barrow Borough Council,The park leisure centre,Equipment purchase,03-Feb-2022,200054013,Chatsworth Signs,"1,625.00"
Barrow Borough Council,Capitalised Planned Maintenance,Rewires,10-Feb-2022,200054065,Keith Wilson Elec Con Ltd,"5,686.50"
Barrow Borough Council,A - Dance Fever,Admissions,16-Feb-2022,200054222,Dance Fever,"5,592.00"
Barrow Borough Council,Barrow town hall,Building cleaning,24-Feb-2022,200054321,Associated Cleaning Contractors,"4,443.98"
Barrow Borough Council,Capitalised Planned Maintenance,Rewires,24-Feb-2022,200054307,Rexel UK Ltd,503.75
Barrow Borough Council,Tenant demand maintenance - HRA,Gas works,10-Feb-2022,200054090,Sure Maintenance,"15,074.50"
Barrow Borough Council,Voids maintenance - HRA,Void repairs,24-Feb-2022,200054309,Hughes Brothers,"2,125.52"
Barrow Borough Council,Barrow BID,Other bodies expenditure,03-Feb-2022,200053982,Barrow BID Company Ltd,"42,784.55"
Barrow Borough Council,Information technology,Agency staff,03-Feb-2022,200054027,VennGroup Recruitment,"1,250.00"
Barrow Borough Council,HRA Estates,Tenants Water Charges,10-Feb-2022,200054088,United Utilities Water Plc,"188,529.13"
Barrow Borough Council,Major works maintenance - HRA,Shop repairs,03-Feb-2022,200053926,Richard Coates Quantity Surveyor,"6,419.40"
Barrow Borough Council,Voids maintenance - HRA,Void repairs,10-Feb-2022,200054091,Hughes Brothers,"4,562.50"
Barrow Borough Council,The markets,Water,03-Feb-2022,200053940,Water Plus Ltd,922.73
Barrow Borough Council,Waste collection,Refuse collection - other works,03-Feb-2022,200053986,FCC Environment Services (UK) Ltd,"1,182.39"
Barrow Borough Council,Low Carbon Barrow,Installation of plant and equipment,10-Feb-2022,200054045,AMP EV,"68,245.15"
Barrow Borough Council,Barrow town hall,Electricity,24-Feb-2022,200054353,NPower,"2,388.68"
Barrow Borough Council,Finance Department,Software maintenance,10-Feb-2022,200054144,Logotech Systems,"1,500.00"
Barrow Borough Council,Public conveniences,Building cleaning,03-Feb-2022,200053930,Growing Concerns,"3,531.17"
Barrow Borough Council,Pollution,Professional training,10-Feb-2022,200054115,CIEH,595.00
Barrow Borough Council,Capitalised Planned Maintenance,Rewires,24-Feb-2022,200054268,Keith Wilson Elec Con Ltd,"5,618.90"
Barrow Borough Council,Crematorium,Maintenance contracts - venue,24-Feb-2022,200054281,Obitus/Vivedia Ltd,"7,459.92"
Barrow Borough Council,Emergency planning,Professional fees,03-Feb-2022,200054005,South Lakeland District Council,"3,450.00"
Barrow Borough Council,Housing repairs control account,Housing repairs invoices,16-Feb-2022,200054239,Howdens Joinery Ltd,"1,100.04"
Barrow Borough Council,Housing repairs control account,Housing repairs invoices,24-Feb-2022,200054275,Howdens Joinery Ltd,"1,046.76"
Barrow Borough Council,Cost of collection,Business rates collection,03-Feb-2022,200053985,Liberata Uk Ltd,"2,728.66"
Barrow Borough Council,The park leisure centre,Equipment purchase,24-Feb-2022,200054273,Chatsworth Signs,"4,598.18"
Barrow Borough Council,The markets,Buildings repairs and maintenance,03-Feb-2022,200054019,Bill Caulfield Electrical,562.81
Barrow Borough Council,The markets,Equipment maintenance,03-Feb-2022,200053944,Karcher (UK) Ltd,"4,394.44"
Barrow Borough Council,Forum 28,Professional fees,16-Feb-2022,200054204,Spektrix Ltd,"1,684.72"
Barrow Borough Council,Big Fish Little Fish Family Rave,Admissions,03-Feb-2022,200053987,Womens Community Matters,"1,580.50"
Barrow Borough Council,Craven house,Water,03-Feb-2022,200053940,Water Plus Ltd,"1,269.24"
Barrow Borough Council,Planning Policy,Agency staff,03-Feb-2022,200054002,The Oyster Partnership Ltd,900.00
Barrow Borough Council,Recycling,Publicity,24-Feb-2022,200054289,32West Ltd,"1,640.00"
Barrow Borough Council,Emergency planning,Professional fees,03-Feb-2022,200053985,Liberata Uk Ltd,"3,360.00"
Barrow Borough Council,Local Council Tax Reduction Scheme (LCTRS),LCTRS Admin,03-Feb-2022,200053985,Liberata Uk Ltd,"9,095.54"
Barrow Borough Council,Dragons & Mythical Beasts,Professional fees,24-Feb-2022,200054322,Cube Room Productions Ltd,"2,613.73"
Barrow Borough Council,Development control,Professional fees,03-Feb-2022,200054036,Database Service Provider Global Ltd,"16,250.00"
Barrow Borough Council,Photocopiers Holding A/C,Photocopier charges paid,03-Feb-2022,200053963,Ricoh UK Ltd,509.38
Barrow Borough Council,Cost of collection,Council tax collection,03-Feb-2022,200053985,Liberata Uk Ltd,"9,095.54"
Barrow Borough Council,Cost of collection,Advertising,24-Feb-2022,200054314,Newsquest Media Group,"1,840.64"
Barrow Borough Council,Current assets - payments in advance,Payment in advance - GF,24-Feb-2022,200054261,Oracle Corporation UK Ltd,"3,700.19"
Barrow Borough Council,Dock museum,Gas,03-Feb-2022,200053950,Corona Energy,"2,219.06"
Barrow Borough Council,Finance Department,Professional fees,10-Feb-2022,200054082,Lambert Smith Hampton,"3,100.00"
Barrow Borough Council,Housing repairs control account,Housing repairs invoices,16-Feb-2022,200054239,Howdens Joinery Ltd,945.47
Barrow Borough Council,Current assets - payments in advance,Payment in advance - GF,10-Feb-2022,200054120,Civica UK Ltd,"10,010.00"
Barrow Borough Council,Disabled Facilities Grant,Grants,24-Feb-2022,200054247,Prism Medical UK Ltd,"5,369.00"
Barrow Borough Council,Dock museum,Buildings repairs and maintenance,24-Feb-2022,200054309,Hughes Brothers,"1,375.38"
Barrow Borough Council,Street cleansing,Street cleansing,03-Feb-2022,200053986,FCC Environment Services (UK) Ltd,"51,767.74"
Barrow Borough Council,Information technology,Data Line Rental,10-Feb-2022,200054057,Nominet UK,760.94
Barrow Borough Council,Forum 28,Professional fees,24-Feb-2022,200054337,Greg Book Advisory,752.00
Barrow Borough Council,Major works maintenance - HRA,Shop repairs,24-Feb-2022,200054325,Coolcheck Refrigeration Ltd,"5,850.00"
Barrow Borough Council,Housing Benefits Admin,Benefits council tenants,03-Feb-2022,200053985,Liberata Uk Ltd,"2,660.94"
Barrow Borough Council,Cyclical maintenance - HRA,Painting,16-Feb-2022,200054163,George Jones & Son (Contractors) Ltd,"10,362.52"
Barrow Borough Council,Tenant demand maintenance - HRA,Central overheads,16-Feb-2022,200054218,Hughes Brothers,"28,550.68"
Barrow Borough Council,Levelling Up Fund,Consultants' fees,24-Feb-2022,200054284,Hatch Associates Ltd,"1,889.00"
Barrow Borough Council,Tenant demand maintenance - HRA,Disrepair,24-Feb-2022,200054282,Progression Solicitors,"3,546.36"
Barrow Borough Council,Local Council Tax Reduction Scheme (LCTRS),Conferences and seminars,03-Feb-2022,200053985,Liberata Uk Ltd,640.00
Barrow Borough Council,Capitalised Planned Maintenance,Heating,03-Feb-2022,200054017,Plumbing Trade Supplies,"1,076.21"
Barrow Borough Council,Dock museum,Maintenance contracts - TSU,03-Feb-2022,200053968,TESGL Ltd,545.00
Barrow Borough Council,Barrow town hall,Gas,03-Feb-2022,200053950,Corona Energy,"2,407.55"
Barrow Borough Council,Capitalised Planned Maintenance,Doors and windows,10-Feb-2022,200054048,Nova Group Ltd,"21,455.81"
Barrow Borough Council,Customer services,Professional fees,03-Feb-2022,200054035,Abavus,"16,900.00"
Barrow Borough Council,Homelessness,Homeless support funding,03-Feb-2022,200054033,Cumbria Community Homes,"13,199.48"
Barrow Borough Council,Cyclical maintenance - HRA,Electrical testing,03-Feb-2022,200054018,Keith Wilson Elec Con Ltd,"1,017.66"
Barrow Borough Council,Information technology,Licences,03-Feb-2022,200053959,Vodafone Ltd,"6,644.39"
Barrow Borough Council,Major works maintenance - HRA,Solar Panels,03-Feb-2022,200053936,Baker Mallett,"1,200.57"
Barrow Borough Council,Disabled Facilities Grant,Grants,10-Feb-2022,200054096,Dolphin Stairlifts Cumbria,"1,960.00"
Barrow Borough Council,Low Carbon Barrow,Professional fees,03-Feb-2022,200053935,RG Parkins & Partners Ltd,720.00
Barrow Borough Council,Marina Village,Professional fees,10-Feb-2022,200054136,Stephenson Halliday,"6,412.35"
Barrow Borough Council,Housing repairs control account,Housing repairs invoices,16-Feb-2022,200054165,UK Environmental & Asbestos Solutions Ltd,"1,375.00"
Barrow Borough Council,Finance Department,Agency staff,10-Feb-2022,200054049,Penna Plc,"9,760.00"
Barrow Borough Council,A - Dance Fever,Recoverable charges,16-Feb-2022,200054222,Dance Fever,"-1,346.09"
Barrow Borough Council,Capitalised Planned Maintenance,Rewires,10-Feb-2022,200054089,Rexel UK Ltd,564.42
Barrow Borough Council,Customer services,Licences,03-Feb-2022,200054035,Abavus,"2,000.00"
Barrow Borough Council,Information technology,Software maintenance,10-Feb-2022,200054099,Texthelp Ltd,"2,310.00"
Barrow Borough Council,Forum 28,Building cleaning,10-Feb-2022,200054102,Elior UK Ltd,"3,347.97"
Barrow Borough Council,Housing repairs control account,Housing repairs invoices,16-Feb-2022,200054165,UK Environmental & Asbestos Solutions Ltd,"1,875.00"
Barrow Borough Council,Heritage Action Zone,Professional fees,03-Feb-2022,200054026,Crosby Granger Architects,"1,730.00"
Barrow Borough Council,Disabled Facilities Grant,Grants,03-Feb-2022,200054016,T Ward and Son Ltd,"5,200.00"
Barrow Borough Council,The markets,Electricity,03-Feb-2022,200053961,NPower,"1,485.74"
Barrow Borough Council,Craven house,Electricity,03-Feb-2022,200053961,NPower,"7,772.57"
Barrow Borough Council,HRA Estates,Cleaning - other,16-Feb-2022,200054215,Associated Cleaning Contractors,"3,968.65"
Barrow Borough Council,Current assets - payments in advance,Payment in advance - GF,03-Feb-2022,200053974,HBINFO Ltd,575.00
Barrow Borough Council,Marina Village,Professional fees,24-Feb-2022,200054296,Stephenson Halliday,"1,568.75"
Barrow Borough Council,Planning Policy,Agency staff,03-Feb-2022,200054002,The Oyster Partnership Ltd,"1,200.00"
Barrow Borough Council,Development control,Agency staff,03-Feb-2022,200053947,G2 Recruitment Solutions,"1,237.50"
Barrow Borough Council,Tenant demand maintenance - HRA,Consultancy fees,16-Feb-2022,200054175,Progression Solicitors,562.50
Barrow Borough Council,Heritage Action Zone,Consultants' fees,03-Feb-2022,200053957,Xanthe Quayle Landscape Architects Ltd,"4,125.00"
Barrow Borough Council,Forge Close,Buildings repairs and maintenance,24-Feb-2022,200054257,Geoffrey Hall,643.50
Barrow Borough Council,Information technology,Professional fees,03-Feb-2022,200053983,NTA Monitor Ltd,725.00
Barrow Borough Council,Development control,Agency staff,10-Feb-2022,200054059,G2 Recruitment Solutions,"1,237.50"
Barrow Borough Council,Pollution,Consultants' fees,16-Feb-2022,200054187,Shared Future CIC,"6,000.00"
Barrow Borough Council,Low Carbon Barrow,Programme management,24-Feb-2022,200054259,Art Gene,"11,040.10"
Barrow Borough Council,Forum 28,Buildings repairs and maintenance,16-Feb-2022,200054201,FTS Fire & Secuirty Ltd,635.00
Barrow Borough Council,Voids maintenance - HRA,Void repairs,10-Feb-2022,200054091,Hughes Brothers,"3,356.66"
Barrow Borough Council,Voids maintenance - HRA,Void repairs,03-Feb-2022,200053976,Hughes Brothers,"6,303.32"
Barrow Borough Council,Waste collection,Refuse collection - contract,03-Feb-2022,200053986,FCC Environment Services (UK) Ltd,"62,568.27"
Barrow Borough Council,Capitalised Planned Maintenance,Doors and windows,16-Feb-2022,200054167,Richmond Joiners & Builders Ltd,807.20
Barrow Borough Council,Development control,Agency staff,16-Feb-2022,200054174,G2 Recruitment Solutions,"1,526.25"
Barrow Borough Council,Dock museum,Programme support - museum,10-Feb-2022,200054043,Tori Cat,800.00
Barrow Borough Council,Information technology,Data Line Rental,16-Feb-2022,200054186,Vodafone Ltd,"1,571.99"
Barrow Borough Council,Major works maintenance - HRA,Repointing Walney,10-Feb-2022,200054101,DLP Services (Northern) Ltd,"19,468.22"
Barrow Borough Council,Capitalised Planned Maintenance,Rewires,10-Feb-2022,200054089,Rexel UK Ltd,"1,090.56"
Barrow Borough Council,The park leisure centre,Water,10-Feb-2022,200054131,Water Plus Ltd,"1,025.06"
Barrow Borough Council,Waste collection,Refuse collection - contract,03-Feb-2022,200053986,FCC Environment Services (UK) Ltd,"63,863.18"
Barrow Borough Council,Recycling,Recycling collection and processing,03-Feb-2022,200053986,FCC Environment Services (UK) Ltd,"41,416.30"
Barrow Borough Council,Development control,Agency staff,24-Feb-2022,200054283,G2 Recruitment Solutions,"1,526.25"
Barrow Borough Council,The park leisure centre,Publicity and promotion,10-Feb-2022,200054044,Cornerstone Design & Marketing,616.20
Barrow Borough Council,Barrow park,Gas,03-Feb-2022,200054010,Continental Landscapes Ltd,854.46
Barrow Borough Council,Barrow town hall,Buildings repairs and maintenance,03-Feb-2022,200054019,Bill Caulfield Electrical,598.31
Barrow Borough Council,Current assets - payments in advance,Payment in advance - GF,24-Feb-2022,200054261,Oracle Corporation UK Ltd,"11,621.53"
Barrow Borough Council,Current assets - payments in advance,Payment in advance - GF,10-Feb-2022,200054042,Zurich Insurance Group Ltd,"4,505.32"
Barrow Borough Council,Harding Rise Business Centre,Gas,03-Feb-2022,200053950,Corona Energy,602.89
Barrow Borough Council,Disabled Facilities Grant,Grants,16-Feb-2022,200054207,Lee Bowron Glazing Ltd,"5,175.00"
Barrow Borough Council,Housing repairs control account,Housing repairs invoices,24-Feb-2022,200054309,Hughes Brothers,"8,718.31"
Barrow Borough Council,Voids maintenance - HRA,Void repairs,16-Feb-2022,200054218,Hughes Brothers,"5,298.00"
Barrow Borough Council,Voids maintenance - HRA,Void repairs,24-Feb-2022,200054309,Hughes Brothers,"10,662.93"
Barrow Borough Council,Planning Policy,Agency staff,03-Feb-2022,200054002,The Oyster Partnership Ltd,"1,020.00"
Barrow Borough Council,That'll be the Day,Professional fees,24-Feb-2022,200054323,TC Productions Ltd,"6,789.14"
Barrow Borough Council,Cemeteries,Grounds maintenance - other works,10-Feb-2022,200054074,Continental Landscapes Ltd,"4,794.96"
Barrow Borough Council,The markets,Buildings repairs and maintenance,10-Feb-2022,200054156,Bill Caulfield Electrical,"1,353.63"
Barrow Borough Council,The markets,Electricity,03-Feb-2022,200053961,NPower,"1,490.59"
Barrow Borough Council,Kennels,Electricity,03-Feb-2022,200053961,NPower,634.77
Barrow Borough Council,Tenant demand maintenance - HRA,Gas works,03-Feb-2022,200053977,Sure Maintenance,"2,888.37"
Barrow Borough Council,Voids maintenance - HRA,Void repairs,03-Feb-2022,200053976,Hughes Brothers,"3,641.40"
Barrow Borough Council,Street cleansing,Street cleansing,03-Feb-2022,200053986,FCC Environment Services (UK) Ltd,"51,767.74"
Barrow Borough Council,Street fittings,Bus shelter maintenance,24-Feb-2022,200054288,Gilmour Fabrications,"1,036.00"
Barrow Borough Council,Current assets - payments in advance,Payment in advance - GF,24-Feb-2022,200054255,Civica UK Ltd,"13,050.84"
Barrow Borough Council,Current assets - stocks,Postage stock,24-Feb-2022,200054312,Pitney Bowes Ltd,"4,040.00"
Barrow Borough Council,Housing repairs control account,Housing repairs invoices,16-Feb-2022,200054239,Howdens Joinery Ltd,"1,139.63"
Barrow Borough Council,Dock museum,Publicity,03-Feb-2022,200054014,Fingerprints,"1,248.00"
Barrow Borough Council,Crematorium,Buildings repairs and maintenance,16-Feb-2022,200054164,Bill Caulfield Electrical,"1,440.00"
Barrow Borough Council,Major works maintenance - HRA,Repointing Walney,24-Feb-2022,200054346,DLP Services (Northern) Ltd,872.10
Barrow Borough Council,Capitalised Planned Maintenance,Roofs,24-Feb-2022,200054346,DLP Services (Northern) Ltd,"5,213.90"
Barrow Borough Council,Waste collection,Refuse collection - contract,03-Feb-2022,200053986,FCC Environment Services (UK) Ltd,"63,863.18"
Barrow Borough Council,Recycling,Recycling collection and processing,03-Feb-2022,200053986,FCC Environment Services (UK) Ltd,"40,576.53"
Barrow Borough Council,Information technology,Agency staff,16-Feb-2022,200054184,VennGroup Recruitment,"1,250.00"
Barrow Borough Council,Housing repairs control account,Housing repairs invoices,16-Feb-2022,200054239,Howdens Joinery Ltd,"1,179.92"
Barrow Borough Council,Cyclical maintenance - HRA,Electrical testing,10-Feb-2022,200054065,Keith Wilson Elec Con Ltd,"1,040.82"
Barrow Borough Council,Major works maintenance - HRA,Repointing Walney,24-Feb-2022,200054346,DLP Services (Northern) Ltd,"19,267.53"
Barrow Borough Council,Housing repairs control account,Housing repairs invoices,24-Feb-2022,200054305,Luscombe Plant Hire Ltd,"8,140.00"
Barrow Borough Council,Cemeteries,Buildings repairs and maintenance,16-Feb-2022,200054200,Peter Daw,"7,000.00"
Barrow Borough Council,Capitalised Planned Maintenance,Rewires,10-Feb-2022,200054065,Keith Wilson Elec Con Ltd,"9,342.30"
Barrow Borough Council,James Freel Close,Solicitors fees,03-Feb-2022,200054020,Brown Barron Solicitors,829.25
Barrow Borough Council,Capitalised Planned Maintenance,Doors and windows,24-Feb-2022,200054346,DLP Services (Northern) Ltd,"4,685.96"
Barrow Borough Council,HRA Estates,Building cleaning,24-Feb-2022,200054321,Associated Cleaning Contractors,733.17
Barrow Borough Council,Capitalised Planned Maintenance,Doors and windows,16-Feb-2022,200054183,Nova Group Ltd,"1,205.95"
Barrow Borough Council,Parks and open spaces,Grounds maintenance - schedule of works,03-Feb-2022,200054010,Continental Landscapes Ltd,"32,694.99"
Barrow Borough Council,Forum 28,Electricity,03-Feb-2022,200053961,NPower,"5,058.08"
Barrow Borough Council,Milton Jones 23.05.21,Professional fees,24-Feb-2022,200054250,Phil McIntyre Entertainment Ltd,"7,250.98"
Barrow Borough Council,Allotments,Property rents,24-Feb-2022,200054352,Holker Estates Company Ltd,"2,180.50"
Barrow Borough Council,Capitalised Planned Maintenance,Roofs,24-Feb-2022,200054346,DLP Services (Northern) Ltd,"17,651.90"
Barrow Borough Council,Major works maintenance - HRA,Repointing Walney,24-Feb-2022,200054346,DLP Services (Northern) Ltd,"17,651.90"
Barrow Borough Council,Housing repairs control account,Housing repairs invoices,24-Feb-2022,200054275,Howdens Joinery Ltd,"1,309.47"
Barrow Borough Council,Abbey Musical - Little Shop of Horrors,Admissions,24-Feb-2022,200054306,Barrow BID Company Ltd,600.00
Barrow Borough Council,Off street car parking,Professional fees,16-Feb-2022,200054171,PARK NOW Ltd,624.01
Barrow Borough Council,Sports development and community recreation,Grass pitches,03-Feb-2022,200054010,Continental Landscapes Ltd,616.84
Barrow Borough Council,Housing Benefits Admin,Benefits private tenants,10-Feb-2022,200054085,Liberata Uk Ltd,664.98
Barrow Borough Council,Housing Benefits Admin,Benefits private tenants,03-Feb-2022,200053985,Liberata Uk Ltd,"7,522.64"
Barrow Borough Council,Estates management,Solicitors fees,10-Feb-2022,200054154,Brown Barron Solicitors,737.00
Barrow Borough Council,Forum 28,Maintenance contracts - TSU,03-Feb-2022,200053968,TESGL Ltd,545.00
Barrow Borough Council,Forum catering,Catering contract - Forum,24-Feb-2022,200054347,Elior UK Ltd,"1,548.50"
Barrow Borough Council,Craven house,Building cleaning,24-Feb-2022,200054321,Associated Cleaning Contractors,595.26
Barrow Borough Council,Capitalised Planned Maintenance,Rewires,10-Feb-2022,200054089,Rexel UK Ltd,"1,535.98"
Barrow Borough Council,Voids maintenance - HRA,Void repairs,10-Feb-2022,200054091,Hughes Brothers,"4,162.73"
Barrow Borough Council,Major works maintenance - HRA,Adaptations,10-Feb-2022,200054128,Coram Holding Ltd,"1,171.29"
Barrow Borough Council,Housing repairs control account,Housing repairs invoices,16-Feb-2022,200054165,UK Environmental & Asbestos Solutions Ltd,725.00
Barrow Borough Council,Information technology,Agency staff,10-Feb-2022,200054049,Penna Plc,718.75
Barrow Borough Council,Salthouse Road Depot,Electricity,24-Feb-2022,200054353,NPower,"1,130.97"
Barrow Borough Council,Forum 28,Equipment purchase,10-Feb-2022,200054105,Nisbets,"2,159.98"
Barrow Borough Council,Dock museum,Building cleaning,10-Feb-2022,200054102,Elior UK Ltd,"1,801.43"
Barrow Borough Council,Housing repairs control account,Housing repairs invoices,10-Feb-2022,200054091,Hughes Brothers,"12,923.13"
Barrow Borough Council,Tenant demand maintenance - HRA,Disrepair,16-Feb-2022,200054175,Progression Solicitors,900.00
Barrow Borough Council,Information technology,Agency staff,10-Feb-2022,200054046,VennGroup Recruitment,"1,250.00"
Barrow Borough Council,Sports development and community recreation,Grass pitches,03-Feb-2022,200054010,Continental Landscapes Ltd,703.39
Barrow Borough Council,Capitalised Planned Maintenance,Doors and windows,24-Feb-2022,200054346,DLP Services (Northern) Ltd,"7,800.24"
Barrow Borough Council,Street cleansing,Street cleansing,03-Feb-2022,200053986,FCC Environment Services (UK) Ltd,"50,718.08"
Barrow Borough Council,Salthouse Road Depot,Electricity,03-Feb-2022,200053961,NPower,"1,053.40"
Barrow Borough Council,HRA Estates,Other expenses,10-Feb-2022,200054055,JJC Hire Ltd,"1,435.00"
Barrow Borough Council,Voids maintenance - HRA,Tipping charges,10-Feb-2022,200054055,JJC Hire Ltd,679.00
Barrow Borough Council,Finance Department,Software maintenance,03-Feb-2022,200053996,Version 1,"6,607.35"
Barrow Borough Council,Barrow town hall,Building cleaning,16-Feb-2022,200054215,Associated Cleaning Contractors,689.50
Barrow Borough Council,Capitalised Planned Maintenance,Doors and windows,24-Feb-2022,200054335,Nova Group Ltd,726.82
Barrow Borough Council,Cyclical maintenance - HRA,Electrical testing,10-Feb-2022,200054065,Keith Wilson Elec Con Ltd,"3,708.98"
Barrow Borough Council,Dock museum,Electricity,24-Feb-2022,200054353,NPower,"1,921.89"
Barrow Borough Council,Dock museum,Electricity,03-Feb-2022,200053961,NPower,"2,147.02"
Barrow Borough Council,Harding Rise Business Centre,Building cleaning,24-Feb-2022,200054321,Associated Cleaning Contractors,693.33
Barrow Borough Council,Current assets - payments in advance,Payment in advance - GF,16-Feb-2022,200054223,LAVAT Consulting Ltd,"2,065.00"
Barrow Borough Council,Barrow park,Grounds maintenance - schedule of works,03-Feb-2022,200054010,Continental Landscapes Ltd,"22,027.51"
Barrow Borough Council,Low Carbon Barrow,Consultants' fees,03-Feb-2022,200053935,RG Parkins & Partners Ltd,810.00
Barrow Borough Council,Disabled Facilities Grant,Grants,03-Feb-2022,200053937,Benchmark Building Serv UK Ltd,"6,760.00"
Barrow Borough Council,Housing repairs control account,Housing repairs invoices,24-Feb-2022,200054246,Lee Bowron Glazing Ltd,"2,590.00"
Barrow Borough Council,Community involvement - HRA,Other expenses,24-Feb-2022,200054339,JJC Hire Ltd,820.00
Barrow Borough Council,Finance Department,Professional fees,16-Feb-2022,200054227,Version 1,"20,188.00"
Barrow Borough Council,Capitalised Planned Maintenance,Doors and windows,24-Feb-2022,200054315,Wrekin Windows,"1,966.87"
Barrow Borough Council,Customer services,Software maintenance,03-Feb-2022,200054035,Abavus,"8,995.00"
Barrow Borough Council,Crematorium,Maintenance contracts - venue,24-Feb-2022,200054320,PJ Combustions Solutions Ltd,"1,205.00"
Barrow Borough Council,Cyclical maintenance - HRA,Painting,10-Feb-2022,200054157,George Jones & Son (Contractors) Ltd,"4,420.10"
Barrow Borough Council,Information technology,Professional training,16-Feb-2022,200054203,QA Ltd,"1,317.25"
Barrow Borough Council,Omid Djalili,Professional fees,24-Feb-2022,200054342,Bound and Gagged Ltd,"4,277.61"
Barrow Borough Council,Capitalised Planned Maintenance,Heating,03-Feb-2022,200053977,Sure Maintenance,"12,756.95"
Barrow Borough Council,Homelessness,Accommodation - homeless bed & breakfast,03-Feb-2022,200053984,Redacted Information,"2,235.00"
Barrow Borough Council,Off street car parking,Equipment maintenance,03-Feb-2022,200053943,Flowbird Smart City UK Ltd,630.00
Barrow Borough Council,Development control,Professional fees,03-Feb-2022,200054036,Database Service Provider Global Ltd,"2,000.00"
Barrow Borough Council,Democratic representation and management,Consultants' fees,10-Feb-2022,200054041,Samantha Bagshaw,"1,848.00"
Barrow Borough Council,Cemeteries,Grounds maintenance - schedule of works,10-Feb-2022,200054074,Continental Landscapes Ltd,"11,216.55"
Barrow Borough Council,The markets,Buildings repairs and maintenance,10-Feb-2022,200054156,Bill Caulfield Electrical,720.00
Barrow Borough Council,Kennels,Electricity,24-Feb-2022,200054353,NPower,526.08
Barrow Borough Council,Crematorium,Electricity,24-Feb-2022,200054353,NPower,879.39
Barrow Borough Council,Harding Rise Business Centre,Electricity,03-Feb-2022,200053961,NPower,"1,123.49"
Barrow Borough Council,Accelerated Towns Fund,Purchase of equipment,24-Feb-2022,200054304,Charnleys Home & Garden,550.00
Barrow Borough Council,P - Country Legends,Hire of halls,16-Feb-2022,200054220,JMG Music Group,-652.50
Barrow Borough Council,The park leisure centre,Equipment purchase,03-Feb-2022,200054037,Big Bang Print Ltd,765.00
Barrow Borough Council,Capitalised Planned Maintenance,Rewires,03-Feb-2022,200054018,Keith Wilson Elec Con Ltd,"5,928.82"
Barrow Borough Council,Off street car parking,Buildings repairs and maintenance,24-Feb-2022,200054309,Hughes Brothers,655.56
Barrow Borough Council,Major works maintenance - HRA,Consultancy fees,16-Feb-2022,200054175,Progression Solicitors,765.00
Barrow Borough Council,Estates management,Buildings repairs and maintenance,16-Feb-2022,200054166,Gilmour Fabrications,"3,250.52"
Barrow Borough Council,Telephones Holding A/C,Telephone charges paid,16-Feb-2022,200054208,EE Ltd,"1,869.73"
Barrow Borough Council,Capitalised Planned Maintenance,Roofs,24-Feb-2022,200054301,SIG Trading Ltd,"11,160.19"
Barrow Borough Council,Housing repairs control account,Housing repairs invoices,10-Feb-2022,200054091,Hughes Brothers,"27,751.06"
Barrow Borough Council,Housing repairs control account,Housing repairs invoices,03-Feb-2022,200054024,DAL Plumbing & Drainage Ltd,950.00
Barrow Borough Council,Information technology,Agency staff,10-Feb-2022,200054049,Penna Plc,"8,193.75"
Barrow Borough Council,Off street car parking,Building cleaning,03-Feb-2022,200053930,Growing Concerns,564.87
Barrow Borough Council,Playground,Parks & Playgrounds Repairs & Maintenance,03-Feb-2022,200054010,Continental Landscapes Ltd,"1,872.60"
Barrow Borough Council,Footpath Lighting,Christmas illuminations,10-Feb-2022,200054073,Optech Fibres,"8,550.00"
Barrow Borough Council,The mall and shops,Buildings repairs and maintenance,10-Feb-2022,200054156,Bill Caulfield Electrical,"1,715.57"
Barrow Borough Council,Street cleansing,Litter bins,24-Feb-2022,200054258,Broxap Ltd,"4,158.00"
Barrow Borough Council,Recycling,Refuse & Recycling Bins Boxes & Bags,24-Feb-2022,200054341,MGB Plastics,"1,875.00"
Barrow Borough Council,Events,Professional fees,03-Feb-2022,200053987,Womens Community Matters,"5,000.00"
Barrow Borough Council,Forum 28,Gas,03-Feb-2022,200053950,Corona Energy,"2,934.81"
Barrow Borough Council,Community involvement - HRA,Other expenses,24-Feb-2022,200054270,Urswick Engineering,503.33
Barrow Borough Council,Barrow town hall,Maintenance contracts - TSU,03-Feb-2022,200053968,TESGL Ltd,545.00
Barrow Borough Council,Capitalised Planned Maintenance,Doors and windows,03-Feb-2022,200053970,SBP Ltd - Permadoor,871.87
Barrow Borough Council,Waste collection,Refuse collection - other works,03-Feb-2022,200053986,FCC Environment Services (UK) Ltd,"1,182.39"
Barrow Borough Council,Capitalised Planned Maintenance,Doors and windows,10-Feb-2022,200054125,Richmond Joiners & Builders Ltd,"1,749.10"
Barrow Borough Council,That'll be the Day,Recoverable charges,24-Feb-2022,200054323,TC Productions Ltd,-629.49
Barrow Borough Council,Capitalised Planned Maintenance,Heating,03-Feb-2022,200054017,Plumbing Trade Supplies,"13,325.16"
Barrow Borough Council,Information technology,Data Line Rental,24-Feb-2022,200054300,Vodafone Ltd,810.39
Barrow Borough Council,Allotments,Property rents,10-Feb-2022,200054114,Carter Jonas,825.00
Barrow Borough Council,Information technology,Licences,03-Feb-2022,200053962,SoftCat Ltd,"1,574.10"
Barrow Borough Council,Capitalised Planned Maintenance,Roofs,10-Feb-2022,200054101,DLP Services (Northern) Ltd,"23,201.40"
Barrow Borough Council,Forum 28,Buildings repairs and maintenance,24-Feb-2022,200054309,Hughes Brothers,695.49
Barrow Borough Council,Northern Live,Professional fees,16-Feb-2022,200054224,Ellis Live Ltd,"8,482.75"
Barrow Borough Council,Work in default,WID works,10-Feb-2022,200054052,Barrow Scrap Metal Ltd,600.00
Barrow Borough Council,Information technology,Consultants' fees,10-Feb-2022,200054047,Proact IT UK Ltd,"11,995.00"
Barrow Borough Council,Forum 28,Planned Building repairs and maintenance,16-Feb-2022,200054166,Gilmour Fabrications,"5,740.00"
Barrow Borough Council,Capitalised Planned Maintenance,Doors and windows,10-Feb-2022,200054101,DLP Services (Northern) Ltd,"1,566.66"
Barrow Borough Council,Housing Benefits Admin,Conferences and seminars,03-Feb-2022,200053974,HBINFO Ltd,"1,240.00"
Barrow Borough Council,Legal,Consultants' fees,03-Feb-2022,200054039,Trafford Council,"10,400.00"
Barrow Borough Council,Estates management,Solicitors fees,16-Feb-2022,200054193,Brown Barron Solicitors,640.00
Barrow Borough Council,Heritage Action Zone,Professional fees,03-Feb-2022,200053988,John Coward Architects Ltd,"1,200.00"
Barrow Borough Council,HRA Estates,Cleaning - other,16-Feb-2022,200054215,Associated Cleaning Contractors,"3,968.65"
Barrow Borough Council,Recycling,Recycling collection and processing,03-Feb-2022,200053986,FCC Environment Services (UK) Ltd,"41,416.30"
Barrow Borough Council,Barrow town hall,Electricity,03-Feb-2022,200053961,NPower,"2,183.30"
Barrow Borough Council,The Best of Queen 19.02.21,Professional fees,16-Feb-2022,200054189,Sweeney Entertainments Ltd,"9,170.72"
Barrow Borough Council,Housing repairs control account,Housing repairs invoices,16-Feb-2022,200054218,Hughes Brothers,"13,914.55"
Barrow Borough Council,Voids maintenance - HRA,Void repairs,10-Feb-2022,200054091,Hughes Brothers,"8,288.87"
Barrow Borough Council,Marina Village,Professional fees,24-Feb-2022,200054296,Stephenson Halliday,"1,120.00"
Barrow Borough Council,Low Carbon Barrow,Professional fees,03-Feb-2022,200054031,Steven Abbott Assoc LLP,"2,441.98"
Barrow Borough Council,A Beautiful Noise 11.03.21,Professional fees,16-Feb-2022,200054190,Pretty Amazing Productions Ltd,"6,128.22"
Barrow Borough Council,Crematorium,Grounds maintenance - other works,10-Feb-2022,200054074,Continental Landscapes Ltd,"2,889.11"
Barrow Borough Council,Heritage Action Zone,HAZ Cultural Programme,03-Feb-2022,200054022,Art Gene,"20,000.00"
Barrow Borough Council,Major works maintenance - HRA,Door entry,10-Feb-2022,200054065,Keith Wilson Elec Con Ltd,"1,658.76"
Barrow Borough Council,The markets,Electricity,03-Feb-2022,200053961,NPower,"1,131.03"
Barrow Borough Council,Harding Rise Business Centre,Water,10-Feb-2022,200054131,Water Plus Ltd,692.75
Barrow Borough Council,Playground,Parks & Playgrounds Inspections & maintenance - contract,03-Feb-2022,200054010,Continental Landscapes Ltd,"15,919.21"
Barrow Borough Council,Major works maintenance - HRA,Shop repairs,24-Feb-2022,200054248,Baker Mallett,"1,275.00"
Barrow Borough Council,Disabled Facilities Grant,Grants,16-Feb-2022,200054207,Lee Bowron Glazing Ltd,"5,380.00"
Barrow Borough Council,Capitalised Planned Maintenance,Doors and windows,10-Feb-2022,200054101,DLP Services (Northern) Ltd,580.04
Barrow Borough Council,Cyclical maintenance - HRA,Electrical testing,24-Feb-2022,200054268,Keith Wilson Elec Con Ltd,"1,582.50"
Barrow Borough Council,Disabled Facilities Grant,Grants,24-Feb-2022,200054256,TK Access Solutions Ltd,"4,050.00"
Barrow Borough Council,Disabled Facilities Grant,Grants,03-Feb-2022,200053939,Lee Bowron Glazing Ltd,"4,300.00"
Barrow Borough Council,Housing repairs control account,Housing repairs invoices,16-Feb-2022,200054218,Hughes Brothers,"26,769.15"
Barrow Borough Council,Finance Department,Professional fees,10-Feb-2022,200054082,Lambert Smith Hampton,850.00
Barrow Borough Council,Waste collection,Refuse collection - other works,03-Feb-2022,200053986,FCC Environment Services (UK) Ltd,"1,182.39"
Barrow Borough Council,Work in default,WID works,03-Feb-2022,200053955,Barrow Scrap Metal Ltd,800.00
Barrow Borough Council,Marina Village,Consultants' fees,24-Feb-2022,200054302,Cumbria County Council,"13,819.39"
Barrow Borough Council,Parks and open spaces,Grounds maintenance - schedule of works,03-Feb-2022,200054010,Continental Landscapes Ltd,"34,573.71"
Barrow Borough Council,The markets,Buildings repairs and maintenance,10-Feb-2022,200054156,Bill Caulfield Electrical,548.78
Barrow Borough Council,Craven house,Electricity,24-Feb-2022,200054353,NPower,"8,131.23"
Barrow Borough Council,A - Dance Fever,Hire of halls,16-Feb-2022,200054222,Dance Fever,"-2,607.00"
Barrow Borough Council,Major works maintenance - HRA,Adaptations,10-Feb-2022,200054101,DLP Services (Northern) Ltd,"7,614.27"
Barrow Borough Council,Capitalised Planned Maintenance,Rewires,03-Feb-2022,200053979,Rexel UK Ltd,"1,654.96"
Barrow Borough Council,Capitalised Planned Maintenance,Roofs,03-Feb-2022,200053992,SIG Trading Ltd,"6,664.24"
Barrow Borough Council,Cemeteries,Memorials,03-Feb-2022,200053990,Fibrous Ltd,818.84
Barrow Borough Council,Cost of collection,Council tax collection,10-Feb-2022,200054085,Liberata Uk Ltd,"2,395.99"
Barrow Borough Council,Forum 28,Equipment purchase,10-Feb-2022,200054070,Furness Plastics,548.00
Barrow Borough Council,Homelessness,Preventing Homelessness - support victims of domestic abuse,16-Feb-2022,200054206,Furness Homeless Support Group,"24,375.00"
Barrow Borough Council,Information technology,Professional fees,16-Feb-2022,200054221,NTA Monitor Ltd,"2,900.00"
Barrow Borough Council,HRA Estates,Tenants content insurance,10-Feb-2022,200054058,Thistle Insurance Services Ltd,906.60
Barrow Borough Council,Capitalised Planned Maintenance,Doors and windows,16-Feb-2022,200054167,Richmond Joiners & Builders Ltd,"8,705.60"
Barrow Borough Council,Planning Policy,Agency staff,24-Feb-2022,200054294,The Oyster Partnership Ltd,"1,200.00"
Barrow Borough Council,Information technology,Agency staff,03-Feb-2022,200054027,VennGroup Recruitment,"1,250.00"
Barrow Borough Council,Capitalised Planned Maintenance,Doors and windows,24-Feb-2022,200054335,Nova Group Ltd,668.79
Barrow Borough Council,The park leisure centre,Buildings repairs and maintenance,16-Feb-2022,200054242,Optech Fibres,"1,956.35"
Barrow Borough Council,Forum 28,Electricity,24-Feb-2022,200054353,NPower,"4,863.36"
Barrow Borough Council,Insurance holding account,Insurance premiums,10-Feb-2022,200054042,Zurich Insurance Group Ltd,"1,340.87"
Barrow Borough Council,Estates management,Buildings repairs and maintenance,24-Feb-2022,200054309,Hughes Brothers,"1,147.46"
Barrow Borough Council,Crematorium,Equipment maintenance,24-Feb-2022,200054292,LEEC Ltd,"1,085.00"
Barrow Borough Council,Information technology,Agency staff,03-Feb-2022,200054027,VennGroup Recruitment,"1,250.00"
Barrow Borough Council,Major works maintenance - HRA,Adaptations,10-Feb-2022,200054101,DLP Services (Northern) Ltd,873.48
Barrow Borough Council,Sports development and community recreation,Grass pitches,03-Feb-2022,200053948,Life Leisure,"4,935.20"
Barrow Borough Council,Capitalised Planned Maintenance,Doors and windows,16-Feb-2022,200054183,Nova Group Ltd,842.97
Barrow Borough Council,Barrow park,Gas,03-Feb-2022,200054010,Continental Landscapes Ltd,"1,887.35"
Barrow Borough Council,Local Council Tax Reduction Scheme (LCTRS),LCTRS Admin,10-Feb-2022,200054085,Liberata Uk Ltd,"1,708.67"
Barrow Borough Council,Harding Rise Business Centre,Electricity,24-Feb-2022,200054353,NPower,"1,188.47"
Barrow Borough Council,Information technology,Agency staff,16-Feb-2022,200054184,VennGroup Recruitment,"1,250.00"
Barrow Borough Council,Finance Department,Software maintenance,10-Feb-2022,200054144,Logotech Systems,"1,000.00"
Barrow Borough Council,Disabled Facilities Grant,Grants,10-Feb-2022,200054108,Lee Bowron Glazing Ltd,"4,450.00"
Barrow Borough Council,Capitalised Planned Maintenance,Doors and windows,10-Feb-2022,200054095,Wrekin Windows,"13,533.23"
Barrow Borough Council,Tenant demand maintenance - HRA,Gas works,10-Feb-2022,200054090,Sure Maintenance,"7,317.74"
Barrow Borough Council,Capitalised Planned Maintenance,Doors and windows,24-Feb-2022,200054287,Richmond Joiners & Builders Ltd,"8,425.01"
Barrow Borough Council,Current assets - payments in advance,Payment in advance - GF,10-Feb-2022,200054083,Democracy Counts Ltd,"6,750.00"
Barrow Borough Council,Off street car parking,Equipment maintenance,16-Feb-2022,200054168,Flowbird Smart City UK Ltd,544.00
Barrow Borough Council,Housing repairs control account,Housing repairs invoices,16-Feb-2022,200054162,Keith Wilson Elec Con Ltd,"1,361.34"
Barrow Borough Council,Crematorium,Gas,03-Feb-2022,200053950,Corona Energy,"2,557.01"
Barrow Borough Council,Office support - admin,Photocopier rental,03-Feb-2022,200053963,Ricoh UK Ltd,941.94
Barrow Borough Council,The park leisure centre,Professional fees,10-Feb-2022,200054073,Optech Fibres,"4,022.40"
Barrow Borough Council,Forum 28,Professional fees,10-Feb-2022,200054110,Spektrix Ltd,"1,892.31"
Barrow Borough Council,Voids maintenance - HRA,Void repairs,24-Feb-2022,200054309,Hughes Brothers,"3,347.09"
Barrow Borough Council,Public conveniences,Water,03-Feb-2022,200053940,Water Plus Ltd,"1,651.90"
Barrow Borough Council,P - Country Legends,Admissions,16-Feb-2022,200054220,JMG Music Group,"2,835.00"
Barrow Borough Council,Information technology,Agency staff,03-Feb-2022,200054027,VennGroup Recruitment,"1,250.00"
Barrow Borough Council,Marina Village,Professional fees,24-Feb-2022,200054332,SK Environmental Solutions Ltd,"5,300.00"
Barrow Borough Council,Crematorium,Buildings repairs and maintenance,10-Feb-2022,200054156,Bill Caulfield Electrical,626.68
Barrow Borough Council,Craven house,Buildings repairs and maintenance,16-Feb-2022,200054196,Ward Glass Ltd,"3,709.56"
Barrow Borough Council,Disabled Facilities Grant,Grants,24-Feb-2022,200054316,Dolphin Stairlifts Cumbria,"3,900.00"
Barrow Borough Council,The markets,Electricity,24-Feb-2022,200054353,NPower,"1,459.27"
Barrow Borough Council,Tenant demand maintenance - HRA,Routine Maintenance,10-Feb-2022,200054112,Cumbria Roofing Ulverston,"7,771.00"
Barrow Borough Council,Major works maintenance - HRA,Solar Panels,03-Feb-2022,200053936,Baker Mallett,671.58
Barrow Borough Council,Housing repairs control account,Housing repairs invoices,16-Feb-2022,200054239,Howdens Joinery Ltd,802.01
Barrow Borough Council,Cyclical maintenance - HRA,Painting,10-Feb-2022,200054157,George Jones & Son (Contractors) Ltd,"5,989.44"
Barrow Borough Council,Dock museum,Buildings repairs and maintenance,10-Feb-2022,200054156,Bill Caulfield Electrical,665.75
Barrow Borough Council,Technical services,Consultants' fees,16-Feb-2022,200054161,Bob Pedley Safety Services,"2,350.00"
Barrow Borough Council,The Best of Queen 19.02.21,Recoverable charges,16-Feb-2022,200054189,Sweeney Entertainments Ltd,-660.29
Barrow Borough Council,Current assets - payments in advance,Payment in advance - hra,24-Feb-2022,200054255,Civica UK Ltd,"4,927.06"
Barrow Borough Council,The markets,Buildings repairs and maintenance,24-Feb-2022,200054309,Hughes Brothers,822.38
Barrow Borough Council,Heritage Action Zone,Professional fees,24-Feb-2022,200054329,Cumbria County Council,"2,000.00"
Barrow Borough Council,Barrow park,Grounds maintenance - schedule of works,03-Feb-2022,200054010,Continental Landscapes Ltd,"22,501.01"
Barrow Borough Council,Crematorium,Electricity,03-Feb-2022,200053961,NPower,881.04
Barrow Borough Council,Recycling,Refuse & Recycling Bins Boxes & Bags,24-Feb-2022,200054253,Craemer UK Ltd,"7,082.40"
Barrow Borough Council,Forum 28,Water,03-Feb-2022,200053940,Water Plus Ltd,"1,141.97"
Barrow Borough Council,Democratic services,Software maintenance,10-Feb-2022,200054120,Civica UK Ltd,"-5,005.00"
Barrow Borough Council,Planning Policy,Agency staff,10-Feb-2022,200054132,The Oyster Partnership Ltd,"1,200.00"
Barrow Borough Council,Playground,Parks & Playgrounds Repairs & Maintenance,03-Feb-2022,200054010,Continental Landscapes Ltd,501.51
Barrow Borough Council,Information technology,Licences,16-Feb-2022,200054180,Vodafone Ltd,"7,044.47"
Barrow Borough Council,Major works maintenance - HRA,Repointing Walney,24-Feb-2022,200054346,DLP Services (Northern) Ltd,"22,044.68"
Barrow Borough Council,Voids maintenance - HRA,Void repairs,10-Feb-2022,200054091,Hughes Brothers,"16,500.05"
Barrow Borough Council,Planning Policy,Agency staff,03-Feb-2022,200054002,The Oyster Partnership Ltd,"1,200.00"
Barrow Borough Council,Housing repairs control account,Housing repairs invoices,16-Feb-2022,200054165,UK Environmental & Asbestos Solutions Ltd,900.00
Barrow Borough Council,Heritage Action Zone,Consultants' fees,10-Feb-2022,200054127,Buttress Architects Ltd,500.00
Barrow Borough Council,Corporate management,Professional fees,24-Feb-2022,200054289,32West Ltd,"4,959.52"
Barrow Borough Council,Homelessness,Homeless support funding,24-Feb-2022,200054328,Cumbria Community Homes,"14,613.71"
Barrow Borough Council,Office support - admin,Photocopying charges,03-Feb-2022,200053963,Ricoh UK Ltd,605.58
Barrow Borough Council,Housing repairs control account,Housing repairs invoices,24-Feb-2022,200054277,DC Contracting,935.00
Barrow Borough Council,The markets,Electricity,03-Feb-2022,200053961,NPower,"1,530.77"
Barrow Borough Council,Capitalised Planned Maintenance,Doors and windows,03-Feb-2022,200053936,Baker Mallett,791.52
Barrow Borough Council,Estates management,Buildings repairs and maintenance,24-Feb-2022,200054309,Hughes Brothers,"1,531.82"
Barrow Borough Council,Magic of Motown,Professional Fees,01-Feb-2022,DD010222,Entertainers (Magic of Motown) Ltd,"6,000.00"
Barrow Borough Council,Pantomime 2021 Beauty & Beast,Professioanl Fees,01-Feb-2022,DD010222,Shone Productions Ltd,"48,818.16"
Barrow Borough Council,Homelessness,Homeless support funding,02-Feb-2022,DD020222,Sorella Group Ltd,720.00
Barrow Borough Council,My Heart Will Go On,Professional Fees,10-Feb-2022,DD100222,Carlton Entertainments,"2,531.19"
Barrow Borough Council,Kreativ Dance,Professional fees,10-Feb-2022,DD100222,Kreativ,"2,807.67"
Barrow Borough Council,Corporate Costs,Bank Charges,11-Feb-2022,DD110222,HSBC,912.07
Barrow Borough Council,Ward Thomas,Professional fees,14-Feb-2022,DD140222,Crosstown Concerts Ltd,"2,908.84"
Barrow Borough Council,Corporate Costs,Bank Charges,16-Feb-2022,DD160222,HSBC,"1,210.07"
Barrow Borough Council,Revenue & Benefits,Postage stock,16-Feb-2022,DD160222,Royal Mail,864.19
Barrow Borough Council,CIS - Inland Revenue Account,CIS TAX,18-Feb-2022,DD180222,HMRC,542.60
Barrow Borough Council,Corporate Costs,Professional fees,28-Feb-2022,DD280222,Allpay,"2,431.76"
